Cogmind - Beta 10.1 @@@ ROGUE MODE // 2021.07.18 @ 01:41:03 // Winter2019/RPGLIKE Player: Farfid Result: Destroyed by as-77869 with Assembled Heavy Rifle Performance ------------- Evolutions (0) 0 Regions Visited (3) 600 Robots Destroyed (13) 65 Value Destroyed (238) 238 Prototype IDs (27) 540 Alien Tech Used (0) 0 Bonus (-149) -149 TOTAL SCORE: 1294 Bonus ------- Follower Combat Kills 46 Aligned with FarCom 300 Friendly Fire -495 Cogmind --------- Core Integrity 0/1000 Matter 300/300 Energy 90/100 System Corruption 0% Temperature Cool (0) Movement Hovering (76) Location -10/Exiles Parts ------- > --- POWER (1) -------- (None) > --- PROPULSION (2) --- Combat Airjet Combat Airjet > --- UTILITY (1) ------ (None) > --- WEAPON (2) ------- Longsword +1 > --- INVENTORY (2) ---- Light Assault Rifle Peak State ------------ > --- POWER ------------ Ion Engine > --- PROPULSION ------- Combat Airjet Combat Airjet > --- UTILITY ---------- (None) > --- WEAPON ----------- Light Assault Rifle Longsword +1 > --- INVENTORY -------- Light Assault Rifle [Rating: 20] Favorites ----------- Power Ion Engine Engine Ion Engine Propulsion Combat Airjet Wheel Wheel Hover Unit Combat Airjet Utility None Weapon Light Assault Rifle Ballistic Gun Light Assault Rifle Slashing Weapon Longsword +1 Build | -11 -10 -10 -10 ------- Run | Scr Mat Min Exi Slots Evolved 2 | 2 . . . Power . | . . . . Propulsion 1 | 1 . . . Utility . | . . . . Weapon 1 | 1 . . . Parts Attached 8 | 5 . 2 1 Power 1 | 1 . . . Engine 1 | 1 . . . Core . | . . . . Reactor . | . . . . Propulsion 4 | 2 . 2 . Treads . | . . . . Leg . | . . . . Wheel 2 | 2 . . . Hover 2 | . . 2 . Flight . | . . . . Utility . | . . . . Device . | . . . . Storage . | . . . . Processor . | . . . . Hackware . | . . . . Protection . | . . . . Artifact . | . . . . Weapon 3 | 2 . . 1 Energy Gun . | . . . . Energy Cannon . | . . . . Ballistic Gun 2 | 2 . . . Ballistic Cannon . | . . . . Launcher . | . . . . Special Weapon . | . . . . Impact Weapon . | . . . . Slashing Weapon 1 | . . . 1 Piercing Weapon . | . . . . Special Melee Weapon . | . . . . Unidentified Prototypes . | . . . . Parts Lost 2 | . . . 2 Power 1 | . . . 1 Propulsion . | . . . . Utility . | . . . . Weapon 1 | . . . 1 Highest Loss Streak 2 | . . . 2 Average Slot Usage (%) 83 | . 83 83 83 Engine 16 | . 16 16 16 Wheel 19 | . 33 26 . Hover 13 | . . 6 33 Ballistic Gun 30 | . 33 33 24 Slashing Weapon 2 | . . . 8 Naked Turns . | . . . . Heaviest Build 9 | 7 7 7 9 Greatest Support 49 | 31 31 49 49 Greatest Overweight (x) . | . . . . Average Overweight (x) . | . . . . Largest Inventory Capacity 2 | 1 1 2 2 Average Capacity 1 | 1 1 1 2 Most Carried 2 | . . 2 2 Average Carried . | . . . . Final Capacity 2 | 1 1 2 2 Final Carried 1 | . . . 1 Class Distribution -------------------- 100% | Mutant Dominant Class ---------------- Mutant | -10/Materials Mutant | -10/Mines Mutant | -10/Exiles Resources | -11 -10 -10 -10 ----------- Run | Scr Mat Min Exi Matter Collected 344 | 223 61 60 . Remotely . | . . . . Salvage Created 272 | . 145 97 30 Parts 24 | . 8 16 . Haulers Intercepted . | . . . . Recyclers Shooed . | . . . . Parts Field Recycled . | . . . . Retrieved Matter . | . . . . Parts Self-Destructed . | . . . . Prevented . | . . . . Kills | -11 -10 -10 -10 ------- Run | Scr Mat Min Exi Combat Hostiles Destroyed 12 | . 4 5 3 Melee 3 | . . . 3 Guns 9 | . 4 5 . Classes Destroyed 5 | . 2 2 1 Tunneler 1 | . . 1 . Swarmer 5 | . 3 2 . Grunt 3 | . 1 2 . Demolisher 1 | . . 1 . Assembled 3 | . . . 3 Best Kill Streak 3 | . 3 2 3 Combat Bots Only 3 | . 3 2 3 Max Kills in Single Turn 1 | . 1 1 1 Gunslinging . | . . . . Exploded . | . . . . Melee 1 | . . . 1 Uniques/NPCs Destroyed . | . . . . Combat | -11 -10 -10 -10 -------- Run | Scr Mat Min Exi Damage Taken 1650 | . 267 394 989 Core 1346 | . 223 332 791 Absorbed by Shields . | . . . . Redirected to Core 868 | . 144 202 522 Core Remaining (%) 100 | 100 . . . Volleys Fired 37 | . 17 20 . Largest 2 | . 2 2 . Hottest 40 | . 40 40 . Shots Fired 74 | . 34 40 . Gun 74 | . 34 40 . Cannon . | . . . . Launcher . | . . . . Special . | . . . . Kinetic 74 | . 34 40 . Thermal . | . . . . Explosive . | . . . . Electromagnetic . | . . . . Robot Hit Streak 8 | . 7 8 . Robot Miss Streak 3 | . 3 3 . Penetration Max . | . . . . Secondary Targets 2 | . . 2 . Max Gunslinging Chain 1 | . . 1 . Shots Hit Robots 65 | . 22 27 16 Core Hits 28 | . 10 14 4 Critical Hits 2 | . . 2 . Critical Kills 1 | . . 1 . Critical Parts Destroyed 1 | . . 1 . Melee Attacks 18 | . . . 18 Impact . | . . . . Slashing 18 | . . . 18 Piercing . | . . . . Sneak Attacks 1 | . . . 1 Combat Hostiles . | . . . . Follow-up Attacks . | . . . . Damage Inflicted 1356 | . 173 221 962 Guns 394 | . 173 221 . Cannons . | . . . . Explosions . | . . . . Melee 962 | . . . 962 Ramming . | . . . . Kinetic 394 | . 173 221 . Thermal . | . . . . Explosive . | . . . . Electromagnetic . | . . . . Impact . | . . . . Slashing 962 | . . . 962 Piercing . | . . . . Highest Corruption . | . . . . Average Corruption . | . . . . Corruption Purged . | . . . . Overload Shots . | . . . . Overflow Damage 52 | . . . 52 Projectiles . | . . . . Explosions . | . . . . Melee 52 | . . . 52 Knockbacks . | . . . . Impact . | . . . . Kinetic . | . . . . Secondary . | . . . . Self-Inflicted Damage . | . . . . Shots . | . . . . Rammed . | . . . . Targets Rammed . | . . . . Kicked . | . . . . Crushed . | . . . . Highest Temperature . | . . . . Average Temperature . | . . . . Received Heat Transfer 139 | . 54 45 40 Siege Activations . | . . . . Robots Corrupted . | . . . . Combat Hostiles . | . . . . Parts Fried . | . . . . Impact Corruptions . | . . . . Robots Melted . | . . . . Combat Hostiles . | . . . . Parts Melted . | . . . . Heat Transferred . | . . . . Parts Sabotaged . | . . . . Parts Stolen . | . . . . Parts Stripped . | . . . . Power Chain Reactions . | . . . . Missiles Intercepted . | . . . . Alert | -11 -10 -10 -10 ------- Run | Scr Mat Min Exi Peak Influence 218 | . 111 218 . Initial 43 | . . 43 . Average 83 | . 38 112 . Maximum Alert Level 1 | . . 1 . Low Security (%) 93 | 100 100 89 . Level 1 6 | . . 10 . Level 2 . | . . . . Level 3 . | . . . . Level 4 . | . . . . Level 5 . | . . . . High Security . | . . . . Max Security . | . . . . Squads Dispatched 3 | . 2 1 . Investigation 2 | . 2 . . Extermination . | . . . . Reinforcement . | . . . . Assault 1 | . . 1 . Garrison . | . . . . Intercept . | . . . . Construction Impeded . | . . . . Haulers Reinforced . | . . . . Stealth | -11 -10 -10 -10 --------- Run | Scr Mat Min Exi Distress Signals . | . . . . Communications Jammed . | . . . . Distress Signals . | . . . . Times Spotted 25 | . 10 7 8 Peak Tracking Total 9 | . 5 3 9 Tactical Retreats 3 | . 3 . . Traps | -11 -10 -10 -10 ------- Run | Scr Mat Min Exi Traps Triggered 1 | . 1 . . Indirectly . | . . . . Trap Hack Attempts . | . . . . Triggered . | . . . . Disarmed . | . . . . Reprogrammed . | . . . . Reused . | . . . . Traps Extracted . | . . . . Installed . | . . . . Triggered . | . . . . Machines | -11 -10 -10 -10 ---------- Run | Scr Mat Min Exi Machines Disabled . | . . . . Max in Single Turn . | . . . . Machines Sabotaged . | . . . . Garrisons Compromised . | . . . . Overloaded Fab Kills . | . . . . Fab Network Shutdowns . | . . . . Hacking | -11 -10 -10 -10 --------- Run | Scr Mat Min Exi Machines Accessed 4 | . 2 . 2 Terminals 2 | . 2 . . Fabricators . | . . . . Repair Stations . | . . . . Recycling Units . | . . . . Scanalyzers . | . . . . Garrison Access . | . . . . Total Hacks 9 | . 7 . 2 Successful 7 | . 5 . 2 Failed 2 | . 2 . . Catastrophic 1 | . 1 . . Database Lockouts . | . . . . Manual 7 | . 6 . 1 Terminals 7 | . 7 . . Fabricators . | . . . . Repair Stations . | . . . . Recycling Units . | . . . . Scanalyzers . | . . . . Garrison Access . | . . . . Terminal Hacks 7 | . 5 . 2 Record 1 | . . . 1 Prototype ID Bank 4 | . 4 . . Branch Access Points 1 | . 1 . . EX-Prototype ID Bank 1 | . . . 1 Fabricator Hacks . | . . . . Repair Station Hacks . | . . . . Recycling Unit Hacks . | . . . . Scanalyzer . | . . . . Garrison Access Hacks . | . . . . Unauthorized Hacks . | . . . . Terminals . | . . . . Fabricators . | . . . . Repair Stations . | . . . . Recycling Units . | . . . . Scanalyzers . | . . . . Garrison Access . | . . . . Data Cores Recovered . | . . . . Used . | . . . . Hacking Detections 2 | . 2 . . Full Trace Events 1 | . 1 . . Feedback Events . | . . . . Feedback Blocked . | . . . . Robot Schematics Acquired . | . . . . Robots Built . | . . . . Matter . | . . . . Time . | . . . . Total Robot Build Rating . | . . . . Part Schematics Acquired . | . . . . Parts Built . | . . . . Matter . | . . . . Time . | . . . . Total Part Build Rating . | . . . . Parts Repaired . | . . . . Time . | . . . . Parts Recycled . | . . . . Recycled Matter . | . . . . Retrieved Matter . | . . . . Retrieved Components . | . . . . Parts Scanalyzed . | . . . . Part Schematics Acquired . | . . . . Parts Damaged . | . . . . Bothacking | -11 -10 -10 -10 ------------ Run | Scr Mat Min Exi Used RIF Installer . | . . . . Robots Hacked . | . . . . Non-combat . | . . . . Combat . | . . . . Robot Hacks Applied . | . . . . Relay Couplers Released . | . . . . Robots Rewired . | . . . . Allies Hacked . | . . . . Hacks Repelled . | . . . . Allies | -11 -10 -10 -10 -------- Run | Scr Mat Min Exi Total Allies 1 | . . 1 . Largest Group 1 | . . 1 . Highest-Rated Group 31 | . . 31 . Highest-Rated Ally 31 | . . 31 . Total Orders . | . . . . Ally Attacks 5 | . . 5 . Total Damage 86 | . . 86 . Kills 2 | . . 2 . Allies Corrupted . | . . . . Allies Melted . | . . . . Intel | -11 -10 -10 -10 ------- Run | Scr Mat Min Exi Robot Analysis Total . | . . . . Derelict Logs Recovered 2 | . . 2 . Drone Launches . | . . . . Drone Recoveries . | . . . . Exploration | -11 -10 -10 -10 ------------- Run | Scr Mat Min Exi Turns Passed 838 | 39 166 379 254 Spaces Moved 777 | 36 128 332 281 Core 1 | 1 . . . Treads . | . . . . Legs . | . . . . Wheels 443 | 35 128 280 . Hover 333 | . . 52 281 Flight . | . . . . Fastest Speed 50 | 50 90 76 76 Average Speed 83 | 88 90 87 76 Slowest Speed 90 | 90 90 90 76 Overloaded Moves . | . . . . Propulsion Burnouts . | . . . . Robots Hopped . | . . . . Cave-ins Triggered . | . . . . Exploration Rate (%) 34 | 3 28 53 52 Regions Visited 3 Branch Regions 2 Pre-discovered Areas 2 | . . 1 1 Known Exits Taken 1 | . 1 . . Unknown Exits Taken 2 | 1 . 1 . Scrap Searched 1 | . . 1 . Spaces Dug . | . . . . Terrain Destroyed . | . . . . Melee . | . . . . Projectile . | . . . . AOE . | . . . . Terrain Rammed . | . . . . Walls Destroyed . | . . . . Machines Disabled . | . . . . Actions | -11 -10 -10 -10 --------- Run | Scr Mat Min Exi Total 884 | 40 151 388 305 Wait 21 | . 7 14 . Move 774 | 35 127 331 281 Hop . | . . . . Pick Up 5 | . . 2 3 Fast Attach 6 | 5 . 1 . Attach 1 | . . 1 . Detach . | . . . . Swap 1 | . . . 1 Drop 5 | . . 3 2 Fire 37 | . 17 20 . Melee 18 | . . . 18 Ram . | . . . . Kick . | . . . . Crush . | . . . . Escape Stasis . | . . . . Rewire . | . . . . Trap . | . . . . Miscellaneous 16 | . . 16 . Route ------- -11/Scrapyard -10/Materials (discovered 2 exits: [*Mat] / *Min) -10/Mines (discovered 2 exits: [*Mat] / *Exi) -10/Exiles (discovered 1 exit: [*Min]) History --------- Turn | Location | Event 1 | -11/Scrapyard | Upgraded with Propulsion slot (x1) 1 | -11/Scrapyard | Upgraded with Weapon slot (x1) 15 | -11/Scrapyard | Discovered new exit (range 16) 40 | -11/Scrapyard | Entered Materials 72 | -10/Materials | Identified exit to Mines 82 | -10/Materials | Discovered new exit (range 15) 206 | -10/Materials | Entered Mines 210 | -10/Mines | Learned location of Zion (-7) 223 | -10/Mines | Learned location of 1 exit from Materials 231 | -10/Mines | Met a Derelict testing a Signal Generator 307 | -10/Mines | Build established: Mutant 309 | -10/Mines | Discovered new exit (range 13) 335 | -10/Mines | Met a Derelict bent on vengeance 363 | -10/Mines | Found a hidden stash of uninstalled traps 450 | -10/Mines | Assembled infested the area 475 | -10/Mines | Reached level 2 491 | -10/Mines | Core integrity fell below 50% 582 | -10/Mines | Discovered new exit (range 5) 585 | -10/Mines | Entered Exiles 604 | -10/Exiles | Met 8R-AWN 617 | -10/Exiles | Met EX-HEX 646 | -10/Exiles | Met EX-DEC 665 | -10/Exiles | Met EX-BIN 675 | -10/Exiles | Aligned with FarCom system 676 | -10/Exiles | Given EX-Vault access code 693 | -10/Exiles | Opened EX-Vault 699 | -10/Exiles | Found Longsword +1 717 | -10/Exiles | Warned to stay clear of 0b10 Research branches 766 | -10/Exiles | Discovered new exit (range 14) 799 | -10/Exiles | Attacked by the Exiles 815 | -10/Exiles | Core integrity fell below 20% 839 | -10/Exiles | Destroyed by as-77869 with Assembled Heavy Rifle Last Messages --------------- 00828_ HV Slug penetrates Wall. 00828_ Penetrated by HV Slug. 00828_ HV Slug penetrates Wall. 00830_ Penetrated by HV Slug. 00830_ HV Slug penetrates Wall. 00830_ Penetrated by HV Slug. 00830_ HV Slug penetrates Wall. 00833_ Penetrated by HV Slug. 00833_ Critical hit. 00833_ Lgt. Assault Rifle destroyed. 00833_ HV Slug penetrates Wall. 00833_ Penetrated by HV Slug. 00833_ HV Slug penetrates Wall. 00836_ Penetrated by HV Slug. 00836_ Critical hit. 00836_ Ion Engine destroyed. 00836_ HV Slug penetrates Wall. 00836_ Penetrated by HV Slug. 00836_ HV Slug penetrates Wall. 00839_ Destroyed Asb. Hover Unit. Map ----- +----------------------------------------------------+ | """"#????????????????????????????????????????????? | | """"#????????????????????????????????????????????? | | """"#????????????????????????????????????????????? | | """#????????????????????????????????????????????? | | """#????????????????????????????????????????????? | | """#????????????????????????????????????????????? | | """#????????????????????????????????????????????? | | """#????????????????????????????????????????????? | | """"????????????????????????????????????????????? | | """#????????????????????????????????????????????? | | """"????????????????????????????????????????????? | | #????????????????????????????????????????????? | | """"#????????????????????????????????????????????? | | #####????????????????????????????????????????????# | | ????????????????????????????????????????????????# | | ???????????????????????????????????????????????# | | ??????????????????????????????????????????????# < | | ###########???????????????????????????????????# | | #"""""""""##??????????????????????????????????# | | " """ """"##????????????????????????????????## | | "" " #???????????????##??????????????## | | " """#??????????????# #??????????????# | | " "#??????????####;#???????????????# | | " "##?????????#; ##?????????????## | | ""###???????# ;#????????????## # | | """#??????## @% ##????????????# * # | | "#????###a a ###????????### ## | | ##???# g% % ########## #? | | ##?## a #""""## ##? | | ### * ##? | | ## #? | | #### ## | | ""#?#"" ""#### # | | #"""##?#######??#### * | | ######??????????????##### | | ##???????????????????????### | | " ##??????????????????????????### | | """ ""#?????????????????????????????### | | " ""#" "##??????????????????????????????#" | | " """##"""""""##???????????????????????????????### | | """"??#########??????????????????????????????????? | | ##???????????????????????????????????????????????? | | ?????????????????????????????????????????????????? | | ?????????????????????????????????????????????????? | | ?????????????????????????????????????????????????? | | ?????????????????????????????????????????????????? | | ?????????????????????????????????????????????????? | | ?????????????????????????????????????????????????? | | ?????????????????????????????????????????????????? | | ?????????????????????????????????????????????????? | +----------------------------------------------------+ Best States ------------- Heat Dissipation 37 Energy Generation 15 Energy Capacity 250 Matter Stores 300 Matter Capacity 300 Sight Range 16 Terrain Scan Density 10 Evasion (%) 49 Item Schematics ----------------- None Robot Schematics ------------------ None Fabricated ------------ Nothing Alien Tech Used ----------------- None Achievements -------------- None Challenges ------------ None RPGLIKE | -11 -10 -10 -10 --------- Run | Scr Mat Min Exi Levels Raised 1 | . . 1 . XP Earned 5277 | 3000 530 1397 350 XP Spent 3850 | 2930 . 500 420 Upgrades 19 | 12 . 1 6 Propulsion Slot 1 | 1 . . . Weapon Slot 1 | 1 . . . Core Integrity 8 | 2 . . 6 Heat Dissipation 2 | 2 . . . Energy Generation 1 | 1 . . . Mass Support 1 | 1 . . . Inventory Capacity 2 | 1 . 1 . Ranged Accuracy 2 | 2 . . . KI Damage % 1 | 1 . . . Protomatter Created 113 | . . 104 9 Integrity Restored 333 | . . 333 . Core 333 | . . 333 . Protomatter Decayed 93 | . . 93 . Game ------ Seed SpikedTrackerMembrane Manual? 0 Play Time 00:08:24 Cumulative 608.1 hours Start 2021.07.18 @ 01:32:28 End 2021.07.18 @ 01:41:03 Sessions 1 Manual Loads 0 Difficulty Rogue Special Mode Winter2019/RPGLIKE Game No. 217 Rogue 217 Adventurer 0 Explorer 0 Win Type - Total 46 Types 26/3/7/4/3/0/2/0/1 Lore% 94 Gallery% 95 Achievement% 85 Wizard Run 0 Options --------- ASCII 0 Keyboard 0 Movement Mouse Keybinds 0 Fullscreen 2 Font 12/Smallcaps Map View 83x54 Tactical HUD 1 Map Filters NONE Filters NONE Steam X RUN: fa1f9de1-6eeb-493b-ae86-67688587ff03